[Event "Klubbmästerskap 2025 Hängrond"]
[Site "Linköping, Sweden"]
[Date "2025.03.11"]
[Round "3.8"]
[White "Leijon, Noah"]
[Black "Davidsson, Asker"]
[Result "0-1"]
[TimeControl "90 min + 30 sec/move"]
[WhiteElo "1803"]
[BlackElo "1823"]

1. e4 {[%clk 01:30:57]} {[%emt 00:00:03]} c5 {[%clk 01:30:27]} {[%emt
00:00:33]} 2. Nf3 {[%clk 01:31:23]} {[%emt 00:00:05]} Nc6 {[%clk 01:30:46]}
{[%emt 00:00:12]} 3. d4 {[%clk 01:31:46]} {[%emt 00:00:06]} cxd4 {[%clk
01:31:10]} {[%emt 00:00:06]} 4. Nxd4 {[%clk 01:32:11]} {[%emt 00:00:05]} g6
{[%clk 01:31:29]} {[%emt 00:00:11]} 5. Nc3 {[%clk 01:32:01]} {[%emt 00:00:40]}
Bg7 {[%clk 01:31:08]} {[%emt 00:00:50]} 6. Be3 {[%clk 01:32:15]} {[%emt
00:00:16]} Nf6 {[%clk 01:31:18]} {[%emt 00:00:20]} 7. Bc4 {[%clk 01:30:37]}
{[%emt 00:02:09]} O-O {[%clk 01:31:32]} {[%emt 00:00:15]} 8. Qd2 {[%clk
01:30:51]} {[%emt 00:00:16]} Nxe4 {[%clk 01:31:06]} {[%emt 00:00:56]} 9. Nxe4
{[%clk 01:16:03]} {[%emt 00:15:19]} d5 {[%clk 01:31:01]} {[%emt 00:00:35]} 10.
O-O-O {[%clk 01:15:28]} {[%emt 00:01:05]} dxe4 {[%clk 01:18:46]} {[%emt
00:12:44]} 11. Nxc6 {[%clk 01:09:48]} {[%emt 00:06:10]} Qxd2+ {[%clk 01:18:18]}
{[%emt 00:00:58]} 12. Rxd2 {[%clk 01:10:07]} {[%emt 00:00:11]} bxc6 {[%clk
01:18:40]} {[%emt 00:00:08]} 13. Rhd1 {[%clk 01:06:47]} {[%emt 00:03:51]} Bg4
{[%clk 01:18:25]} {[%emt 00:00:45]} 14. Re1 {[%clk 01:05:11]} {[%emt 00:02:06]}
Rab8 {[%clk 01:11:18]} {[%emt 00:07:37]} 15. c3 {[%clk 01:02:42]} {[%emt
00:02:59]} Rb7 {[%clk 01:02:13]} {[%emt 00:09:35]} 16. h3 {[%clk 00:55:11]}
{[%emt 00:08:02]} Be6 {[%clk 00:48:55]} {[%emt 00:13:48]} 17. Bxe6 {[%clk
00:55:14]} {[%emt 00:00:25]} fxe6 {[%clk 00:49:23]} {[%emt 00:00:02]} 18. Red1
{[%clk 00:53:45]} {[%emt 00:02:00]} Kf7 {[%clk 00:47:39]} {[%emt 00:02:14]} 19.
Rd8 {[%clk 00:37:26]} {[%emt 00:16:49]} Rxd8 {[%clk 00:33:16]} {[%emt
00:14:52]} 20. Rxd8 {[%clk 00:33:36]} {[%emt 00:04:22]} Rc7 {[%clk 00:13:19]}
{[%emt 00:20:27]} 21. Ra8 {[%clk 00:31:21]} {[%emt 00:02:45]} c5 {[%clk
00:13:31]} {[%emt 00:00:18]} 22. Kc2 {[%clk 00:22:58]} {[%emt 00:08:53]} Be5
{[%clk 00:08:07]} {[%emt 00:05:54]} 23. Bh6 {[%clk 00:13:07]} {[%emt 00:10:22]}
Bg7 {[%clk 00:07:33]} {[%emt 00:01:04]} 24. Bxg7 {[%clk 00:13:31]} {[%emt
00:00:05]} Kxg7 {[%clk 00:07:54]} {[%emt 00:00:09]} 25. Rd8 {[%clk 00:13:51]}
{[%emt 00:00:10]} Kf6 {[%clk 00:07:20]} {[%emt 00:01:04]} 26. a3 {[%clk
00:13:06]} {[%emt 00:01:15]} c4 {[%clk 00:06:26]} {[%emt 00:01:24]} 27. a4
{[%clk 00:07:49]} {[%emt 00:05:47]} h5 {[%clk 00:06:40]} {[%emt 00:00:15]} 28.
Kd2 {[%clk 00:04:22]} {[%emt 00:03:58]} Rb7 {[%clk 00:05:54]} {[%emt 00:01:16]}
29. Ke3 {[%clk 00:04:28]} {[%emt 00:00:24]} Rxb2 {[%clk 00:05:27]} {[%emt
00:00:58]} 30. Rd7 {[%clk 00:04:42]} {[%emt 00:00:15]} Rb3 {[%clk 00:05:24]}
{[%emt 00:00:32]} 31. Kd4 {[%clk 00:04:01]} {[%emt 00:01:11]} Rb2 {[%clk
00:05:13]} {[%emt 00:00:41]} 32. Rxa7 {[%clk 00:02:55]} {[%emt 00:01:36]} Rxf2
{[%clk 00:05:28]} {[%emt 00:00:16]} 33. Kxe4 {[%clk 00:02:25]} {[%emt
00:00:59]} Rxg2 {[%clk 00:05:30]} {[%emt 00:00:28]} 34. Rb7 {[%clk 00:02:14]}
{[%emt 00:00:42]} Rg3 {[%clk 00:04:26]} {[%emt 00:01:34]} 35. a5 {[%clk
00:02:13]} {[%emt 00:00:32]} Rxc3 {[%clk 00:04:49]} {[%emt 00:00:06]} 36. a6
{[%clk 00:02:28]} {[%emt 00:00:16]} Ra3 {[%clk 00:04:49]} {[%emt 00:00:29]} 37.
a7 {[%clk 00:02:36]} {[%emt 00:00:22]} c3 {[%clk 00:04:53]} {[%emt 00:00:26]}
38. Kd3 {[%clk 00:02:48]} {[%emt 00:00:18]} g5 {[%clk 00:04:51]} {[%emt
00:00:31]} 39. Rc7 {[%clk 00:01:28]} {[%emt 00:01:50]} g4 {[%clk 00:04:31]}
{[%emt 00:00:50]} 40. hxg4 {[%clk 00:01:35]} {[%emt 00:00:23]} hxg4 {[%clk
00:04:59]} {[%emt 00:00:02]} 41. Rxc3 {[%clk 00:00:54]} {[%emt 00:01:12]} Rxa7
{[%clk 00:05:23]} {[%emt 00:00:06]} 42. Ke3 {[%clk 00:00:36]} {[%emt 00:00:49]}
Kf5 {[%clk 00:05:41]} {[%emt 00:00:12]} 43. Kf2 {[%clk 00:00:36]} {[%emt
00:00:30]} e5 {[%clk 00:06:08]} {[%emt 00:00:03]} 44. Kg3 {[%clk 00:00:40]}
{[%emt 00:00:26]} Rd7 {[%clk 00:06:19]} {[%emt 00:00:19]} 45. Rc8 {[%clk
00:00:40]} {[%emt 00:00:30]} Rd3+ {[%clk 00:06:42]} {[%emt 00:00:06]} 46. Kg2
{[%clk 00:00:41]} {[%emt 00:00:30]} Rf3 {[%clk 00:05:35]} {[%emt 00:01:37]} 47.
Re8 {[%clk 00:00:34]} {[%emt 00:00:37]} e6 {[%clk 00:05:54]} {[%emt 00:00:10]}
48. Rf8+ {[%clk 00:00:41]} {[%emt 00:00:24]} Ke4 {[%clk 00:06:21]} {[%emt
00:00:02]} 49. Re8 {[%clk 00:01:04]} {[%emt 00:00:07]} Rf6 {[%clk 00:06:08]}
{[%emt 00:00:42]} 50. Rg8 {[%clk 00:01:14]} {[%emt 00:00:20]} Kf4 {[%clk
00:06:27]} {[%emt 00:00:12]} 51. Kf2 {[%clk 00:01:14]} {[%emt 00:00:30]} e4
{[%clk 00:06:43]} {[%emt 00:00:13]} 0-1